fUST/lending_fUST_20240207
["ID","MTS","AMOUNT","RATE_DAILY","PERIOD"]
[313400084,1707306641927,-500.0,0.00027671,2]
[313400085,1707306641936,-1981.99,0.00027671,3]
[313400086,1707306641946,-17431.26,0.00027671,3]
[313400087,1707306641955,-757.27,0.00027671,3]
[313400089,1707306641965,-2726.02,0.00027671,3]
[313400091,1707306641974,-280.0,0.00027896,15]
[313400093,1707306641983,-2086.02,0.00027945,3]
[313400094,1707306641993,-500.0,0.00027945,3]
[313400095,1707306642002,-506.78266855,0.00027945,3]
[313400096,1707306642011,-500.0,0.00027945,3]
[313400097,1707306642020,-500.0,0.00027945,3]
[313400098,1707306642029,-500.0,0.00027945,3]
[313400099,1707306642039,-813.45,0.00027945,3]
[313400100,1707306642048,-500.0,0.00027945,3]
[313400101,1707306642057,-500.0,0.00027945,3]
[313400102,1707306642067,-500.0,0.00027945,3]
[313400103,1707306642076,-671.44,0.00027945,3]
[313400104,1707306642086,-1473.14,0.00027945,3]
[313400105,1707306642095,-500.0,0.00027945,2]
[313400106,1707306642104,-1023.71,0.00027945,3]
[313400107,1707306642114,-903.15,0.00027945,3]
[313400108,1707306642123,-500.0,0.00027945,3]
[313400109,1707306642132,-500.0,0.00027945,3]
[313400110,1707306642141,-500.0,0.00027945,2]
[313400111,1707306642151,-500.0,0.00027945,3]
[313400112,1707306642160,-2813.97,0.00027945,3]
[313400113,1707306642169,-794.49,0.00027945,3]
[313400114,1707306642178,-1724.96,0.00027945,3]
[313400115,1707306642188,-2995.0,0.00027945,3]
[313400116,1707306642197,-1218.64,0.00027945,3]
[313400117,1707306642206,-2432.76,0.00027945,3]
[313400118,1707306642216,-1093.21,0.00027945,3]
[313400119,1707306642225,-1316.19,0.00027945,3]
[313400120,1707306642235,-5773.32,0.00027945,3]
[313400121,1707306642244,-1324.84,0.00027945,3]
[313400122,1707306642253,-1035.91,0.00027945,3]
[313400123,1707306642262,-808.52,0.00027945,3]
[313400124,1707306642271,-1762.96,0.00027945,3]
[313400125,1707306642281,-1226.92,0.00027945,3]
[313400126,1707306642290,-6059.98,0.00027945,3]
[313400127,1707306642299,-500.0,0.00027945,3]
[313400128,1707306642308,-9581.67,0.00027945,3]
[313400129,1707306642317,-795.25,0.00027945,3]
[313400130,1707306642327,-274.69,0.00027945,3]
[313400131,1707306642337,-1000.0,0.00027945,2]
[313400132,1707306642346,-5813.07,0.00027945,3]
[313400133,1707306642356,-2604.75,0.00027945,3]
[313400134,1707306642366,-2164.85,0.00027945,3]
[313400135,1707306642375,-750.22,0.00027945,3]
[313400136,1707306642385,-500.0,0.00027945,3]
[313400137,1707306642394,-500.0,0.00027945,2]
[313400138,1707306642404,-1981.99,0.00027945,3]
[313400139,1707306642414,-17431.26,0.00027945,3]
[313400140,1707306642425,-757.27,0.00027945,3]
[313400141,1707306642434,-459.60686937,0.00028,3]
[313400142,1707306642443,-155.02170304,0.00028,2]
[313400143,1707306642452,-3394.61567587,0.00028,2]
[313400144,1707306642462,-213749.20277714,0.00028,20]
[313400145,1707306642547,-4681.25617007,0.00028,20]
[313400146,1707306642719,-581.0,0.000271,2]
[313400147,1707306642729,-2726.02,0.00027945,3]
[313400148,1707306642738,-3808.3041016,0.00028,20]
[313400149,1707306642750,-3606.27720025,0.00028,20]
[313400150,1707306642761,-3024.57019212,0.00028,20]
[313400151,1707306642774,-404.01179138,0.00028,20]
[313400152,1707306642785,-2388.07837051,0.00028,20]
[313400153,1707306642796,-6759.42242454,0.00028,20]
[313400154,1707306642808,-1640.19488631,0.00028,20]
[313400155,1707306642819,-14019.17290369,0.00028,20]
[313400156,1707306642838,-464.78866184,0.00028,20]
[313400157,1707306642850,-367.733038,0.00028,20]
[313400182,1707306643711,-893.02,0.00027935,3]
[313400183,1707306643721,-3646.90297684,0.00028,20]
[313400195,1707306646691,-8314.49944028,0.00027845,2]
[313400214,1707306848007,1500.0,0.000125,2]
[313400215,1707306848035,2500.0,0.000125,2]
[313400216,1707306848063,2122.80995703,0.000125,2]
[313400218,1707306883979,1652.44337949,0.000125,2]
[313400219,1707306903978,1224.74666348,0.000125,2]
[313400220,1707306904006,427.69671601,0.000125,2]
[313400221,1707306923976,1397.18789419,0.000125,2]
[313400268,1707307831840,-155.01705188,0.00024084,4]
[313400270,1707307831850,-873.77122576,0.00024085,2]
[313400288,1707307838021,-16258.89432694,0.00024085,2]
[313400289,1707307838031,-2421.3244864,0.00024107,2]
[313400290,1707307838041,-1670.9127419,0.00024143,2]
[313400291,1707307838051,-540.69233766,0.00024214,2]
[313400292,1707307838060,-169.091125,0.00024314,2]
[313400293,1707307838069,-277.231175,0.00024365,2]
[313400294,1707307838079,-956.7808324,0.00024438,2]
[313400295,1707307838088,-308.09552047,0.00025,2]
[313400296,1707307838097,-15957.98606244,0.00025236,2]
[313400297,1707307838108,-3959.34310959,0.00025236,2]
[313400298,1707307838117,-332.06936582,0.000259,2]
[313400299,1707307838127,-200.0,0.00026493,15]
[313400300,1707307838136,-454.74308412,0.00026838,3]
[313400301,1707307838148,-85.94925349,0.00026838,3]
[313400302,1707307838158,-1473.74045074,0.00027,2]
[313400303,1707307838167,-929.39068967,0.00027121,2]
[313400443,1707309032017,-155.01705188,0.00020999,4]
[313400444,1707309032027,-170.75269762,0.00021,2]
[313400445,1707309032036,-221.37957721,0.00023136,2]
[313400446,1707309032045,-23.56908156,0.00023282,2]
[313400447,1707309032058,-2019.48845404,0.00023282,2]
[313400448,1707309032069,-8156.71454203,0.00023282,2]
[313400494,1707309038112,-829.31771081,0.00023282,2]
[313400497,1707309038134,-1339.64696279,0.00023282,2]
[313400536,1707309041281,-2328.151,0.00023282,2]
[313400537,1707309041294,-10172.03047386,0.00023282,2]
[313400548,1707309043025,-31.08177491,0.00023282,2]
[313400549,1707309043035,-203.683616,0.0002345,2]
[313400550,1707309043044,-455.86274338,0.00024187,2]
[313400551,1707309043054,-4434.03433106,0.00024655,2]
[313400552,1707309043063,-684.20548531,0.00025,2]
[313400553,1707309043072,-2814.98793126,0.00025236,2]
[313400554,1707309043087,-360.12577253,0.00025236,2]
[313400573,1707309046146,-707.06837839,0.00025236,2]
[313400575,1707309046155,-387.53162161,0.00025249,2]
[313400593,1707309388876,2137.25233495,0.00029,30]
[313400724,1707310241539,-155.01705188,0.00023135,4]
[313400726,1707310241549,-381.07476366,0.00023136,2]
[313400727,1707310241557,-169.979322,0.00024363,2]
[313400729,1707310241567,-124.3466599,0.00024587,2]
[313400731,1707310241579,-468.11144531,0.00024587,2]
[313400733,1707310241590,-3205.31183782,0.00024587,2]
[313400862,1707310243318,-907.62073107,0.00024587,2]
[313401010,1707310246344,-349.2657779,0.00024587,2]
[313401012,1707310246355,-886.63811284,0.00025,3]
[313401016,1707310265144,483.62,0.00029,30]
[313401083,1707311165087,154.81,0.00029,30]
[313401478,1707311438592,-155.00930056,0.00020799,4]
[313401480,1707311438603,-1687.90304115,0.00020799,2]
[313401482,1707311438613,-1192.55138894,0.000208,2]
[313401484,1707311438623,-7165.14947035,0.00021,2]
[313401486,1707311438632,-13650.9488146,0.00021775,2]
[313401489,1707311438644,-3559.99820387,0.00021775,2]
[313401491,1707311438656,-651.03054117,0.00021775,2]
[313401493,1707311438671,-7038.02244036,0.00021775,2]
[313401495,1707311438681,-254.04984244,0.000229,2]
[313401497,1707311438691,-200.0,0.00023099,7]
[313401499,1707311438701,-176.149663,0.00024613,2]
[313401501,1707311438713,-1948.64448812,0.00025,3]
[313401502,1707311438724,-1106.613306,0.00025127,2]
[313401504,1707311438734,-768.80094367,0.00025127,2]
[313401506,1707311438744,-1033.08376908,0.00025132,2]
[313401509,1707311438757,-4715.10108686,0.00025132,2]
[313401581,1707311443463,-1491.09917477,0.00025132,2]
[313401582,1707311443475,-6588.30454887,0.00025132,2]
[313401588,1707311444653,-312.2633,0.00025132,2]
[313401589,1707311444669,-1123.13452258,0.00025132,2]
[313401590,1707311444680,-1662.12723803,0.00025132,2]
[313401591,1707311444690,-5000.0,0.00025132,2]
[313401592,1707311444699,-2382.21165183,0.00025137,2]
[313401593,1707311444708,-4027.21528195,0.00025141,2]
[313401594,1707311444720,-972.78471805,0.00025141,2]
[313401595,1707311444729,-7463.59,0.00025141,3]
[313401596,1707311444738,-5000.0,0.00025151,2]
[313401597,1707311444747,-1607.98506776,0.00025151,2]
[313401598,1707311444756,-153.0,0.00025205,2]
[313401599,1707311444765,-2915.01231234,0.00025249,2]
[313401600,1707311444775,-280.0,0.00025409,7]
[313401601,1707311444784,-183.82053132,0.00026944,2]
[313401602,1707311444793,-6219.66,0.0002699,3]
[313401603,1707311444802,-1201.19414152,0.00026998,2]
[313401604,1707311444811,-206.45491755,0.00026998,2]
[313401605,1707311444822,-201.78710056,0.00026998,2]
[313401606,1707311444835,-155.01550155,0.00026998,2]
[313401607,1707311444844,-9963.35829512,0.00026999,2]
[313401608,1707311444853,-2267.06724154,0.00026999,2]
[313401609,1707311444862,-180.7763201,0.00026999,2]
[313401610,1707311444871,-9148.84379648,0.00027,10]
[313401611,1707311444883,-722.7997962,0.00027,10]
[313401633,1707311709000,1235.601743,0.00027397,120]
[313401645,1707311885623,196.0,0.0003,120]
[313401673,1707312188744,926.701307,0.00027397,120]
[313401692,1707312632583,-154.9690062,0.00023615,2]
[313401694,1707312632594,-680.80132289,0.00023616,2]
[313401696,1707312632604,-154.9690062,0.00023616,2]
[313401698,1707312632613,-154.9690062,0.00023617,4]
[313401700,1707312632623,-500.0,0.00023617,2]
[313401701,1707312632633,-1345.48123601,0.00023618,2]
[313401702,1707312632646,-241.46883871,0.00023618,2]
[313401703,1707312632655,-1687.90304115,0.00023619,2]
[313401704,1707312632664,-8265.0453239,0.00023628,2]
[313401705,1707312632674,-176.149663,0.0002373,2]
[313401706,1707312632683,-325.02548086,0.00024899,2]
[313401707,1707312632693,-2616.13972886,0.00025,2]
[313401708,1707312632703,-495.50748634,0.00025032,2]
[313401709,1707312632712,-16805.81660752,0.00025132,2]
[313401710,1707312632722,-216.12684558,0.00025887,2]
[313401711,1707312632731,-200.0,0.00025988,7]
[313401712,1707312632742,-26672.88718647,0.00026778,2]
[313401713,1707312632752,-355.28,0.000268,2]
[313401714,1707312632761,-1014.2791137,0.00026942,2]
[313401715,1707312632770,-151.0,0.00026969,2]
[313401716,1707312632780,-151.0,0.00026969,2]
[313401717,1707312632790,-151.0,0.00026979,2]
[313401718,1707312632799,-245.0,0.00026979,2]
[313401719,1707312632809,-151.0,0.00026979,2]
[313401720,1707312632818,-341.709696,0.00026979,2]
[313401721,1707312632827,-341.709696,0.00026979,2]
[313401722,1707312632837,-2877.56497918,0.00026986,3]
[313401723,1707312637868,695.02598,0.00027397,120]
[313401769,1707312638756,-6025.55502082,0.00026986,3]
[313401771,1707312638766,-3683.56638648,0.00026989,2]
[313401772,1707312638775,-7419.26,0.00026989,3]
[313401773,1707312638784,-156.66681756,0.00026996,2]
[313401774,1707312638793,-160.29220759,0.00026996,2]
[313401775,1707312638803,-426.74292046,0.00026996,2]
[313401776,1707312638813,-2735.05425101,0.00026996,5]
[313401777,1707312638823,-341.709696,0.00026996,2]
[313401778,1707312638832,-341.709696,0.00026996,2]
[313401779,1707312638842,-1199.75820462,0.00026997,2]
[313401780,1707312638851,-1314.92681383,0.00026998,2]
[313401781,1707312638860,-1407.5312618,0.00026998,2]
[313401782,1707312638869,-259.7112316,0.00026998,2]
[313401783,1707312638879,-717.4770118,0.00026998,2]
[313401784,1707312638888,-155.11636113,0.00026998,2]
[313401785,1707312638897,-15869.98835207,0.00026998,2]
[313401786,1707312638906,-5848.46839529,0.00026998,2]
[313401787,1707312638915,-331.4482259,0.00026998,2]
[313401788,1707312638925,-182.01968802,0.00026998,2]
[313401789,1707312638935,-2743.09739573,0.00026998,2]
[313401790,1707312638943,-156.9901161,0.00026998,2]
[313401791,1707312638953,-351.86026775,0.00026998,2]
[313401792,1707312638963,-1935.01724955,0.00026998,2]
[313401793,1707312638972,-4276.99284098,0.00026998,2]
[313401794,1707312638981,-335.39772833,0.00026998,2]
[313401795,1707312638991,-534.69538579,0.00026998,2]
[313401796,1707312639001,-6297.30004496,0.00026998,2]
[313401797,1707312639010,-151.0,0.00026998,2]
[313401798,1707312639020,-341.709696,0.00026998,2]
[313401799,1707312639030,-341.709696,0.00026998,2]
[313401800,1707312639039,-341.709696,0.00026998,2]
[313401801,1707312639048,-341.709696,0.00026998,2]
[313401802,1707312639057,-341.709696,0.00026998,2]
[313401803,1707312639067,-341.709696,0.00026998,2]
[313401804,1707312639076,-167.98778071,0.00026999,2]
[313401805,1707312639085,-4495.12556647,0.00026999,2]
[313401806,1707312639094,-692.26861691,0.00026999,2]
[313401807,1707312639104,-500.0,0.00026999,2]
[313401808,1707312639113,-203.86884163,0.00026999,2]
[313401809,1707312639123,-500.0,0.00026999,2]
[313401810,1707312639133,-500.0,0.00026999,2]
[313401811,1707312639143,-500.0,0.00026999,2]
[313401812,1707312639153,-500.0,0.00026999,2]
[313401813,1707312639162,-500.0,0.00026999,2]
[313401814,1707312639172,-500.0,0.00026999,2]
[313401815,1707312639182,-500.0,0.00026999,2]
[313401816,1707312639197,-500.0,0.00026999,2]
[313401817,1707312639206,-500.0,0.00026999,2]
[313401818,1707312639218,-500.0,0.00026999,2]
[313401819,1707312639228,-500.0,0.00026999,2]
[313401820,1707312639237,-500.0,0.00026999,2]
[313401821,1707312639246,-500.0,0.00026999,2]
[313401822,1707312639256,-156.33138862,0.00026999,2]
[313401823,1707312639266,-500.0,0.00026999,2]
[313401824,1707312639276,-500.0,0.00026999,2]
[313401825,1707312639285,-184.0,0.00026999,2]
[313401826,1707312639294,-500.0,0.00026999,2]
[313401827,1707312639304,-500.0,0.00026999,2]
[313401828,1707312639314,-500.0,0.00026999,2]
[313401829,1707312639323,-500.0,0.00026999,2]
[313401830,1707312639334,-500.0,0.00026999,2]
[313401831,1707312639343,-500.0,0.00026999,2]
[313401832,1707312639353,-500.0,0.00026999,2]
[313401833,1707312639363,-500.0,0.00026999,2]
[313401834,1707312639372,-500.0,0.00026999,2]
[313401835,1707312639382,-595.26405919,0.00026999,2]
[313401836,1707312639391,-500.0,0.00026999,2]
[313401837,1707312639401,-500.0,0.00026999,2]
[313401838,1707312639410,-500.0,0.00026999,2]
[313401839,1707312639419,-500.0,0.00026999,2]
[313401840,1707312639429,-500.0,0.00026999,2]
[313401841,1707312639438,-500.0,0.00026999,2]
[313401842,1707312639448,-206.40781439,0.00026999,2]
[313401843,1707312639457,-500.0,0.00026999,2]
[313401844,1707312639469,-500.0,0.00026999,2]
[313401845,1707312639479,-500.0,0.00026999,2]
[313401846,1707312639488,-500.0,0.00026999,2]
[313401847,1707312639498,-500.0,0.00026999,2]
[313401848,1707312639507,-500.0,0.00026999,2]
[313401849,1707312639516,-500.0,0.00026999,2]
[313401850,1707312639526,-500.0,0.00026999,2]
[313401851,1707312639535,-500.0,0.00026999,2]
[313401852,1707312639545,-500.0,0.00026999,2]
[313401853,1707312639555,-500.0,0.00026999,2]
[313401854,1707312639564,-196.41691446,0.00026999,2]
[313401855,1707312639573,-471.16201652,0.00026999,2]
[313401856,1707312639583,-500.0,0.00026999,2]
[313401857,1707312639593,-341.709696,0.00026999,2]
[313401858,1707312639602,-341.709696,0.00026999,2]
[313401859,1707312639611,-341.709696,0.00026999,2]
[313401860,1707312639620,-341.709696,0.00026999,2]
[313401861,1707312639630,-341.709696,0.00026999,2]
[313401862,1707312639639,-341.709696,0.00026999,2]
[313401863,1707312639649,-341.709696,0.00026999,2]
[313401864,1707312639659,-341.709696,0.00026999,2]
[313401865,1707312639669,-35397.65040732,0.00027,10]
[313401866,1707312639679,-99472.77442192,0.00027,7]
[313401867,1707312639694,-44889.82814513,0.00027,7]
[313401868,1707312639704,-2500.0,0.00027,3]
[313401869,1707312639715,-341.709696,0.00027,2]
[313401870,1707312639724,-341.709702,0.00027,2]
[313401871,1707312639734,-21491.0857532,0.00027021,2]
[313401872,1707312639744,-18195.49753649,0.00027121,2]
[313401873,1707312639754,-5000.0,0.00027299,2]
[313401874,1707312639763,-5000.0,0.000273,2]
[313401875,1707312639772,-824.52622886,0.00027395,2]
[313401876,1707312639781,-262.71950685,0.00027395,2]
[313401877,1707312639791,-189.04694394,0.00027395,2]
[313401878,1707312639801,-3396.51812022,0.00027395,2]
[313401879,1707312639810,-155.94506972,0.00027395,2]
[313401880,1707312639820,-1764.51810886,0.00027395,2]
[313401881,1707312639829,-327.47555768,0.00027395,2]
[313401882,1707312639839,-2035.56139266,0.00027396,2]
[313401883,1707312639848,-155.45047097,0.00027397,2]
[313401884,1707312639858,-500.0,0.00027397,3]
[313401885,1707312639867,-500.0,0.00027397,3]
[313401886,1707312639876,-500.0,0.00027397,3]
[313401887,1707312639886,-500.0,0.00027397,2]
[313401888,1707312639895,-500.0,0.00027397,3]
[313401889,1707312639905,-500.0,0.00027397,3]
[313401890,1707312639914,-500.0,0.00027397,3]
[313401891,1707312639924,-505.07426409,0.00027397,3]
[313401892,1707312639934,-416.71414332,0.00027397,3]
[313401893,1707312639945,-506.36438935,0.00027397,3]
[313401894,1707312639954,-500.0,0.00027397,3]
[313401895,1707312639966,-317.85551631,0.00027397,3]
[313401896,1707312639975,-762.46,0.00027397,3]
[313401897,1707312639985,-504.71659176,0.00027397,3]
[313401898,1707312639994,-504.19093172,0.00027397,3]
[313401899,1707312640004,-1000.0,0.00027397,2]
[313401900,1707312640014,-198.05721257,0.00027397,2]
[313401901,1707312640024,-1941.41,0.00027397,3]
[313401902,1707312640033,-752.29,0.00027397,3]
[313401903,1707312640042,-869.78,0.00027397,3]
[313401904,1707312640052,-2018.58,0.00027397,3]
[313401905,1707312640062,-192.78847145,0.00027397,3]
[313401906,1707312640163,-500.0,0.00027397,3]
[313401907,1707312640172,-500.0,0.00027397,3]
[313401908,1707312640182,-506.70682152,0.00027397,3]
[313401909,1707312640196,-500.0,0.00027397,3]
[313401910,1707312640205,-500.0,0.00027397,3]
[313401911,1707312640215,-500.0,0.00027397,3]
[313401912,1707312640225,-504.48564056,0.00027397,3]
[313401913,1707312640235,-345.14306486,0.00027397,3]
[313401914,1707312640244,-486.99104266,0.00027397,3]
[313401915,1707312640252,-534.79218378,0.00027397,3]
[313401916,1707312640262,-507.93133318,0.00027397,3]
[313401917,1707312640272,-500.0,0.00027397,3]
[313401918,1707312640282,-1422.92,0.00027397,3]
[313401919,1707312640292,-500.0,0.00027397,3]
[313401920,1707312640301,-507.99501781,0.00027397,3]
[313401921,1707312640310,-300.0,0.00027397,2]
[313401922,1707312640319,-154.98450155,0.00027397,2]
[313401923,1707312640329,-500.96304012,0.00027397,3]
[313401924,1707312640339,-1011.57,0.00027397,3]
[313401925,1707312640349,-893.19,0.00027397,3]
[313401926,1707312640358,-500.0,0.00027397,3]
[313401927,1707312640367,-500.0,0.00027397,3]
[313401928,1707312640376,-500.0,0.00027397,3]
[313401929,1707312640385,-500.0,0.00027397,3]
[313401930,1707312640395,-503.00953847,0.00027397,3]
[313401931,1707312640404,-500.0,0.00027397,3]
[313401932,1707312640413,-156.15938467,0.00027397,3]
[313401933,1707312640422,-500.0,0.00027397,3]
[313401934,1707312640431,-500.0,0.00027397,3]
[313401935,1707312640440,-500.0,0.00027397,3]
[313401936,1707312640449,-16202.7,0.00027397,3]
[313401937,1707312640459,-508.14521893,0.00027397,3]
[313401938,1707312640469,-500.0,0.00027397,3]
[313401939,1707312640479,-293.04651491,0.00027397,3]
[313401940,1707312640488,-390.0,0.00027397,3]
[313401941,1707312640497,-500.0,0.00027397,3]
[313401942,1707312640506,-500.0,0.00027397,3]
[313401943,1707312640516,-500.0,0.00027397,3]
[313401944,1707312640525,-2534.81,0.00027397,3]
[313401945,1707312640534,-761.13,0.00027397,3]
[313401946,1707312640544,-500.0,0.00027397,3]
[313401947,1707312640553,-2622.43,0.00027397,3]
[313401948,1707312640562,-1361.87438516,0.00027397,5]
[313401949,1707312640572,-500.0,0.00027397,3]
[313401950,1707312640582,-2911.48,0.00027397,3]
[313401951,1707312640591,-1686.99,0.00027397,3]
[313401952,1707312640600,-1239.59,0.00027397,3]
[313401953,1707312640610,-1076.77,0.00027397,3]
[313401954,1707312640619,-682.65,0.00027397,3]
[313401955,1707312640628,-2361.9,0.00027397,3]
[313401956,1707312640637,-1292.16,0.00027397,3]
[313401957,1707312640647,-500.0,0.00027397,3]
[313401958,1707312640656,-500.0,0.00027397,2]
[313401959,1707312640666,-168.18592306,0.00027397,3]
[313401960,1707312640675,-5610.81,0.00027397,3]
[313401961,1707312640684,-1021.42,0.00027397,3]
[313401962,1707312640693,-1313.77,0.00027397,3]
[313401963,1707312640703,-500.0,0.00027397,3]
[313401964,1707312640713,-1719.09,0.00027397,3]
[313401965,1707312640722,-1205.93,0.00027397,3]
[313401966,1707312640731,-814.21,0.00027397,3]
[313401967,1707312640740,-500.0,0.00027397,3]
[313401968,1707312640751,-538.81365786,0.00027397,3]
[313401969,1707312640760,-5801.26,0.00027397,3]
[313401970,1707312640770,-500.0,0.00027397,3]
[313401971,1707312640781,-500.0,0.00027397,3]
[313401972,1707312640792,-500.0,0.00027397,3]
[313401973,1707312640802,-500.0,0.00027397,3]
[313401974,1707312640812,-613.90053192,0.00027397,3]
[313401975,1707312640823,-324.31200646,0.00027397,3]
[313401976,1707312640834,-8896.84,0.00027397,3]
[313401977,1707312640845,-551.78266893,0.00027397,3]
[313401978,1707312640856,-502.82677952,0.00027397,3]
[313401979,1707312640867,-5396.87,0.00027397,3]
[313401980,1707312640877,-2721.76,0.00027397,3]
[313401981,1707312640886,-500.0,0.00027397,3]
[313401983,1707312640896,-500.0,0.00027397,3]
[313401984,1707312640905,-500.0,0.00027397,3]
[313401985,1707312640914,-1998.18,0.00027397,3]
[313401986,1707312640923,-500.0,0.00027397,2]
[313401988,1707312640933,-728.01,0.00027397,3]
[313401989,1707312640942,-500.0,0.00027397,3]
[313401990,1707312640951,-511.89299392,0.000275,2]
[313401991,1707312640960,-2000.0,0.000275,2]
[313401992,1707312640970,-2000.0,0.0002751,2]
[313401993,1707312640979,-2000.0,0.0002752,2]
[313401994,1707312640989,-2000.0,0.0002753,2]
[313401995,1707312640999,-2000.0,0.0002754,2]
[313401997,1707312641008,-2000.0,0.0002755,2]
[313401998,1707312641018,-495.50748633,0.00027554,3]
[313401999,1707312641028,-2000.0,0.0002756,2]
[313402000,1707312641037,-2000.0,0.0002757,2]
[313402001,1707312641046,-2000.0,0.0002758,2]
[313402002,1707312641055,-2000.0,0.0002759,2]
[313402004,1707312641065,-2000.0,0.000276,2]
[313402006,1707312641074,-2000.0,0.0002761,2]
[313402008,1707312641084,-3603.005683,0.0002762,2]
[313402009,1707312641093,-500.0,0.0002767,2]
[313402011,1707312641102,-204.94266607,0.0002767,2]
[313402013,1707312641111,-500.0,0.0002767,2]
[313402015,1707312641120,-500.0,0.0002767,2]
[313402016,1707312641129,-466.75837324,0.0002767,2]
[313402018,1707312641138,-237.73419634,0.0002767,2]
[313402020,1707312641147,-455.70902255,0.0002767,2]
[313402022,1707312641156,-500.0,0.0002767,2]
[313402024,1707312641165,-500.0,0.0002767,2]
[313402026,1707312641175,-500.0,0.0002767,2]
[313402028,1707312641185,-500.0,0.0002767,2]
[313402030,1707312641198,-555.2103973,0.0002767,2]
[313402032,1707312641206,-500.0,0.00027671,3]
[313402034,1707312641215,-500.0,0.00027671,2]
[313402036,1707312641225,-762.46,0.00027671,3]
[313402038,1707312641234,-1000.0,0.00027671,2]
[313402040,1707312641243,-1941.41,0.00027671,3]
[313402042,1707312641252,-752.29,0.00027671,3]
[313402044,1707312641262,-869.78,0.00027671,3]
[313402046,1707312641271,-2018.58,0.00027671,3]
[313402048,1707312641280,-606.05327763,0.00027671,3]
[313402050,1707312641289,-500.0,0.00027671,3]
[313402052,1707312641299,-500.0,0.00027671,3]
[313402054,1707312641308,-1422.92,0.00027671,3]
[313402056,1707312641316,-1011.57,0.00027671,3]
[313402058,1707312641325,-893.19,0.00027671,3]
[313402060,1707312641334,-500.0,0.00027671,3]
[313402062,1707312641344,-500.0,0.00027671,3]
[313402064,1707312641353,-267.78809075,0.00027671,3]
[313402066,1707312641362,-500.0,0.00027671,3]
[313402068,1707312641370,-16202.7,0.00027671,3]
[313402070,1707312641380,-421.1,0.00027671,3]
[313402072,1707312641389,-390.0,0.00027671,3]
[313402074,1707312641398,-500.0,0.00027671,3]
[313402076,1707312641407,-500.0,0.00027671,3]
[313402077,1707312641416,-2534.81,0.00027671,3]
[313402080,1707312641425,-761.13,0.00027671,3]
[313402082,1707312641434,-500.0,0.00027671,3]
[313402083,1707312641444,-2622.43,0.00027671,3]
[313402085,1707312641453,-600.10329254,0.00027671,3]
[313402087,1707312641462,-2911.48,0.00027671,3]
[313402089,1707312641471,-1686.99,0.00027671,3]
[313402091,1707312641480,-1239.59,0.00027671,3]
[313402093,1707312641489,-1076.77,0.00027671,3]
[313402095,1707312641499,-682.65,0.00027671,3]
[313402097,1707312641508,-2361.9,0.00027671,3]
[313402099,1707312641517,-1292.16,0.00027671,3]
[313402101,1707312641526,-637.88884278,0.00027671,3]
[313402103,1707312641535,-500.0,0.00027671,2]
[313402105,1707312641544,-5610.81,0.00027671,3]
[313402107,1707312641554,-1021.42,0.00027671,3]
[313402109,1707312641563,-1313.77,0.00027671,3]
[313402111,1707312641572,-1719.09,0.00027671,3]
[313402113,1707312641581,-1205.93,0.00027671,3]
[313402115,1707312641590,-814.21,0.00027671,3]
[313402117,1707312641600,-5801.26,0.00027671,3]
[313402119,1707312641609,-500.0,0.00027671,3]
[313402121,1707312641618,-8896.84,0.00027671,3]
[313402123,1707312641627,-5396.87,0.00027671,3]
[313402125,1707312641636,-2721.76,0.00027671,3]
[313402127,1707312641646,-500.0,0.00027671,3]
[313402129,1707312641656,-500.0,0.00027671,3]
[313402131,1707312641666,-1998.18,0.00027671,3]
[313402133,1707312641675,-500.0,0.00027671,2]